[Event "*** Titled Tuesday Blitz"]
[Site "Chess.com"]
[Date "2020.02.04"]
[Round "4"]
[White "isla88"]
[Black "stoleriu"]
[Result "0-1"]
[WhiteElo "2326"]
[BlackElo "2503"]
[TimeControl "180+2"]
[EndTime "13:51:34 PST"]
[Termination "stoleriu won by resignation"]

1. c4 {[%clk 0:03:01.9]} 1... e5 {[%clk 0:03:00.5]} 2. Nc3 {[%clk 0:02:59.8]}
2... Nc6 {[%clk 0:03:00.6]} 3. Nf3 {[%clk 0:03:00.7]} 3... f5 {[%clk 0:02:58.7]}
4. d4 {[%clk 0:02:53.9]} 4... e4 {[%clk 0:02:59.8]} 5. d5 {[%clk 0:02:51.9]}
5... exf3 {[%clk 0:02:54]} 6. dxc6 {[%clk 0:02:52.3]} 6... fxg2 {[%clk
0:02:54.3]} 7. cxd7+ {[%clk 0:02:53.1]} 7... Qxd7 {[%clk 0:02:55]} 8. Qxd7+
{[%clk 0:02:51.4]} 8... Bxd7 {[%clk 0:02:55.7]} 9. Bxg2 {[%clk 0:02:53.3]} 9...
c6 {[%clk 0:02:57.1]} 10. Bf4 {[%clk 0:02:49.1]} 10... Ne7 {[%clk 0:02:50.3]}
11. e4 {[%clk 0:02:46.7]} 11... Ng6 {[%clk 0:02:48]} 12. Bg5 {[%clk 0:02:42.2]}
12... f4 {[%clk 0:02:44.9]} 13. Ne2 {[%clk 0:02:04.7]} 13... Bd6 {[%clk
0:02:38.9]} 14. O-O-O {[%clk 0:02:04.6]} 14... Be7 {[%clk 0:01:37.9]} 15. Bxe7
{[%clk 0:01:58.4]} 15... Kxe7 {[%clk 0:01:39.7]} 16. h4 {[%clk 0:01:51.5]} 16...
Rhf8 {[%clk 0:01:38]} 17. Bh3 {[%clk 0:01:28.9]} 17... Rad8 {[%clk 0:01:19]} 18.
Bxd7 {[%clk 0:01:25.6]} 18... Rxd7 {[%clk 0:01:20.7]} 19. Nd4 {[%clk 0:01:26.4]}
19... Rfd8 {[%clk 0:01:15.3]} 20. Nf5+ {[%clk 0:01:23.9]} 20... Kf6 {[%clk
0:01:16.2]} 21. h5 {[%clk 0:00:57.2]} 21... Ne5 {[%clk 0:01:13.1]} 22. Rxd7
{[%clk 0:00:48.9]} 22... Rxd7 {[%clk 0:01:14.2]} 23. Kc2 {[%clk 0:00:48.7]}
23... Nxc4 {[%clk 0:01:12.1]} 24. Rh4 {[%clk 0:00:45.5]} 24... Kg5 {[%clk
0:00:54.3]} 25. Rh2 {[%clk 0:00:39.3]} 25... Ne5 {[%clk 0:00:47.7]} 26. Rg2+
{[%clk 0:00:39.5]} 26... Kf6 {[%clk 0:00:48.6]} 27. Kc3 {[%clk 0:00:23.8]} 27...
Rd3+ {[%clk 0:00:44.1]} 28. Kc2 {[%clk 0:00:25]} 28... Rd7 {[%clk 0:00:45.3]}
29. Kc3 {[%clk 0:00:25.9]} 29... g6 {[%clk 0:00:26.9]} 30. hxg6 {[%clk
0:00:26.3]} 30... hxg6 {[%clk 0:00:28.7]} 31. Nd4 {[%clk 0:00:27.5]} 31... c5
{[%clk 0:00:25.9]} 32. Nb3 {[%clk 0:00:21.8]} 32... b6 {[%clk 0:00:25.4]} 33.
Nd2 {[%clk 0:00:21.1]} 33... Rd3+ {[%clk 0:00:25.5]} 34. Kc2 {[%clk 0:00:22.4]}
34... Rd4 {[%clk 0:00:25.5]} 35. f3 {[%clk 0:00:21.5]} 35... Nd3 {[%clk
0:00:23.6]} 36. Rg1 {[%clk 0:00:14]} 36... Nb4+ {[%clk 0:00:22.5]} 37. Kd1
{[%clk 0:00:09.7]} 37... Nxa2 {[%clk 0:00:22.5]} 38. Rh1 {[%clk 0:00:10.6]}
38... Nb4 {[%clk 0:00:20.6]} 39. Rh4 {[%clk 0:00:10.4]} 39... Nd3 {[%clk
0:00:21.1]} 40. Rh8 {[%clk 0:00:09.9]} 40... Nxb2+ {[%clk 0:00:20.9]} 41. Kc2
{[%clk 0:00:11.5]} 41... Nc4 {[%clk 0:00:19.7]} 42. Rf8+ {[%clk 0:00:12.6]}
42... Ke7 {[%clk 0:00:18.5]} 43. Ra8 {[%clk 0:00:12.5]} 43... Rxd2+ {[%clk
0:00:18.4]} 44. Kc3 {[%clk 0:00:14]} 44... Rd4 {[%clk 0:00:19.6]} 45. Rxa7+
{[%clk 0:00:14.5]} 45... Kf6 {[%clk 0:00:20.9]} 46. Ra4 {[%clk 0:00:12]} 46...
Ne5 {[%clk 0:00:21.4]} 47. Ra6 {[%clk 0:00:12.7]} 47... Rd6 {[%clk 0:00:22.2]}
48. Kb3 {[%clk 0:00:12.6]} 48... Nxf3 {[%clk 0:00:23.1]} 49. Kc4 {[%clk
0:00:13.6]} 49... Ne5+ {[%clk 0:00:23.5]} 50. Kb5 {[%clk 0:00:14.6]} 50... f3
{[%clk 0:00:24.8]} 51. Ra2 {[%clk 0:00:14.9]} 51... g5 {[%clk 0:00:25.2]} 52.
Rf2 {[%clk 0:00:15]} 52... g4 {[%clk 0:00:26.2]} 0-1

[Event "*** Titled Tuesday Blitz"]
[Site "Chess.com"]
[Date "2020.02.04"]
[Round "4"]
[White "Roman_Ovetchkin"]
[Black "sergiochess83"]
[Result "0-1"]
[WhiteElo "2692"]
[BlackElo "2936"]
[TimeControl "180+2"]
[EndTime "13:51:36 PST"]
[Termination "sergiochess83 won by resignation"]

1. d4 {[%clk 0:03:01.9]} 1... Nf6 {[%clk 0:02:59.7]} 2. c4 {[%clk 0:03:02.5]}
2... g6 {[%clk 0:02:58.8]} 3. Nc3 {[%clk 0:03:02.2]} 3... d5 {[%clk 0:02:59.9]}
4. cxd5 {[%clk 0:03:01.4]} 4... Nxd5 {[%clk 0:03:00.2]} 5. e4 {[%clk 0:03:03.3]}
5... Nxc3 {[%clk 0:03:00.2]} 6. bxc3 {[%clk 0:03:05.2]} 6... Bg7 {[%clk
0:03:01.7]} 7. Be3 {[%clk 0:02:53.7]} 7... c5 {[%clk 0:03:00.3]} 8. Qd2 {[%clk
0:02:53.7]} 8... O-O {[%clk 0:02:57.2]} 9. d5 {[%clk 0:02:51.4]} 9... Qa5 {[%clk
0:01:59.4]} 10. Rc1 {[%clk 0:02:51.1]} 10... e6 {[%clk 0:01:59.4]} 11. Nf3
{[%clk 0:02:49.8]} 11... exd5 {[%clk 0:01:58.7]} 12. exd5 {[%clk 0:02:50.5]}
12... Bg4 {[%clk 0:01:55.8]} 13. Be2 {[%clk 0:02:46.6]} 13... Nd7 {[%clk
0:01:55.8]} 14. c4 {[%clk 0:02:38.5]} 14... Qxd2+ {[%clk 0:01:46.5]} 15. Nxd2
{[%clk 0:02:31.7]} 15... Bxe2 {[%clk 0:01:46.2]} 16. Kxe2 {[%clk 0:02:33.6]}
16... Rfe8 {[%clk 0:01:47.3]} 17. Rb1 {[%clk 0:02:19.3]} 17... b6 {[%clk
0:01:44.8]} 18. Nf3 {[%clk 0:02:17.4]} 18... f5 {[%clk 0:01:06.7]} 19. Kd3
{[%clk 0:02:16.3]} 19... Nf6 {[%clk 0:01:07.9]} 20. Ng5 {[%clk 0:01:49.5]} 20...
Rad8 {[%clk 0:00:59]} 21. Kc2 {[%clk 0:01:09.1]} 21... f4 {[%clk 0:00:39.5]} 22.
Bxf4 {[%clk 0:01:09.5]} 22... Re2+ {[%clk 0:00:40.5]} 23. Kb3 {[%clk 0:01:10.9]}
23... Rxf2 {[%clk 0:00:38.7]} 24. Ne6 {[%clk 0:01:08.6]} 24... Rd7 {[%clk
0:00:35.8]} 25. Rhf1 {[%clk 0:01:04.8]} 25... Rxf1 {[%clk 0:00:19.4]} 26. Rxf1
{[%clk 0:01:06.7]} 26... Ne4 {[%clk 0:00:12.9]} 27. Be3 {[%clk 0:00:45.4]} 27...
Nd6 {[%clk 0:00:10.5]} 28. a4 {[%clk 0:00:42]} 28... h5 {[%clk 0:00:08.8]} 29.
g3 {[%clk 0:00:20.8]} 29... Nf5 {[%clk 0:00:09.8]} 30. Bg1 {[%clk 0:00:21]}
30... Bd4 {[%clk 0:00:10.6]} 31. Rxf5 {[%clk 0:00:11.1]} 31... gxf5 {[%clk
0:00:09.1]} 32. Bxd4 {[%clk 0:00:12.8]} 32... cxd4 {[%clk 0:00:10.1]} 33. Nxd4
{[%clk 0:00:14.7]} 33... Kf7 {[%clk 0:00:06.4]} 34. Nxf5 {[%clk 0:00:15.3]}
34... Kf6 {[%clk 0:00:07.9]} 35. Nd4 {[%clk 0:00:16.2]} 35... Ke5 {[%clk
0:00:09.1]} 36. Nc6+ {[%clk 0:00:16.4]} 36... Ke4 {[%clk 0:00:10.5]} 37. Kb4
{[%clk 0:00:15.8]} 37... Rg7 {[%clk 0:00:09.8]} 38. a5 {[%clk 0:00:16.7]} 38...
Kf3 {[%clk 0:00:10.2]} 39. axb6 {[%clk 0:00:17.2]} 39... axb6 {[%clk 0:00:11.6]}
40. Kb5 {[%clk 0:00:18.6]} 40... Kg2 {[%clk 0:00:13.2]} 41. Kxb6 {[%clk
0:00:19.5]} 41... Kxh2 {[%clk 0:00:14.8]} 42. d6 {[%clk 0:00:20.4]} 42... Kxg3
{[%clk 0:00:16]} 43. Ne5 {[%clk 0:00:21.9]} 43... h4 {[%clk 0:00:17.1]} 44. c5
{[%clk 0:00:22]} 44... h3 {[%clk 0:00:18.4]} 45. c6 {[%clk 0:00:23.5]} 45... h2
{[%clk 0:00:19.9]} 46. c7 {[%clk 0:00:24.6]} 46... h1=Q {[%clk 0:00:21.1]} 47.
c8=Q {[%clk 0:00:25.9]} 47... Qb1+ {[%clk 0:00:21.8]} 48. Ka6 {[%clk 0:00:26.7]}
48... Qa1+ {[%clk 0:00:21.9]} 49. Kb5 {[%clk 0:00:27.9]} 49... Qxe5+ {[%clk
0:00:22.6]} 50. Kc6 {[%clk 0:00:28.2]} 50... Qc3+ {[%clk 0:00:22.1]} 0-1

[Event "*** Titled Tuesday Blitz"]
[Site "Chess.com"]
[Date "2020.02.04"]
[Round "4"]
[White "Gahan-MG"]
[Black "Poghosyan_Suren"]
[Result "0-1"]
[WhiteElo "2442"]
[BlackElo "2672"]
[TimeControl "180+2"]
[EndTime "13:51:45 PST"]
[Termination "Poghosyan_Suren won by resignation"]

1. e4 {[%clk 0:03:00]} 1... e6 {[%clk 0:03:00.4]} 2. b3 {[%clk 0:03:00.6]} 2...
d5 {[%clk 0:02:59.9]} 3. Bb2 {[%clk 0:03:01.8]} 3... dxe4 {[%clk 0:03:00.8]} 4.
Nc3 {[%clk 0:03:01.7]} 4... Nf6 {[%clk 0:03:01.7]} 5. g4 {[%clk 0:03:03.1]} 5...
h6 {[%clk 0:02:58]} 6. Bg2 {[%clk 0:03:04.1]} 6... e5 {[%clk 0:02:54.5]} 7. h3
{[%clk 0:03:04.6]} 7... Nc6 {[%clk 0:02:52]} 8. Nxe4 {[%clk 0:03:05.8]} 8... Nd5
{[%clk 0:02:52.4]} 9. Ne2 {[%clk 0:03:06.3]} 9... Be7 {[%clk 0:02:49.2]} 10. O-O
{[%clk 0:03:05.9]} 10... h5 {[%clk 0:02:49.1]} 11. N2g3 {[%clk 0:02:58.9]} 11...
hxg4 {[%clk 0:02:49.9]} 12. hxg4 {[%clk 0:03:00.8]} 12... Nf4 {[%clk 0:02:48]}
13. Qf3 {[%clk 0:02:58.4]} 13... Rh4 {[%clk 0:02:04.7]} 14. Nf5 {[%clk
0:02:12.5]} 14... Bxf5 {[%clk 0:02:04.3]} 15. gxf5 {[%clk 0:02:14.4]} 15... Nd4
{[%clk 0:01:53.5]} 16. Bxd4 {[%clk 0:02:14.7]} 16... Qxd4 {[%clk 0:01:55.4]} 17.
Ng3 {[%clk 0:02:11.4]} 17... c6 {[%clk 0:01:51.2]} 18. Rfe1 {[%clk 0:02:08]}
18... O-O-O {[%clk 0:01:49.4]} 19. c3 {[%clk 0:02:06.2]} 19... Qxd2 {[%clk
0:01:39.7]} 20. Rxe5 {[%clk 0:02:05.3]} 20... Bf6 {[%clk 0:01:35.2]} 21. Re4
{[%clk 0:02:01.7]} 21... Qxc3 {[%clk 0:01:22.8]} 22. Qxc3 {[%clk 0:02:01]} 22...
Bxc3 {[%clk 0:01:24.7]} 23. Rc1 {[%clk 0:01:58.3]} 23... Bf6 {[%clk 0:01:13.4]}
24. Bf3 {[%clk 0:01:44.5]} 24... Rd2 {[%clk 0:01:10.9]} 25. Kf1 {[%clk
0:01:20.9]} 25... Rxf2+ {[%clk 0:00:52]} 26. Kxf2 {[%clk 0:01:19.5]} 26... Nd3+
{[%clk 0:00:53.4]} 27. Kg2 {[%clk 0:01:14.6]} 27... Rxe4 {[%clk 0:00:49.9]} 28.
Bxe4 {[%clk 0:01:03.6]} 28... Nxc1 {[%clk 0:00:50.6]} 29. Bb1 {[%clk 0:01:05.5]}
29... b5 {[%clk 0:00:43.4]} 30. Kf3 {[%clk 0:01:05.8]} 30... a5 {[%clk
0:00:39.9]} 31. Ne4 {[%clk 0:01:03.7]} 31... Be5 {[%clk 0:00:38.8]} 32. Ke3
{[%clk 0:00:59.7]} 32... g6 {[%clk 0:00:26.4]} 33. f6 {[%clk 0:00:48.7]} 33...
Kd7 {[%clk 0:00:24.8]} 34. Nc5+ {[%clk 0:00:22]} 34... Kd6 {[%clk 0:00:23.8]}
35. Ne4+ {[%clk 0:00:19.1]} 35... Ke6 {[%clk 0:00:24.7]} 36. Ng5+ {[%clk
0:00:18.9]} 36... Kxf6 {[%clk 0:00:25.2]} 37. Nh3 {[%clk 0:00:14.6]} 37... g5
{[%clk 0:00:25.2]} 38. Kd2 {[%clk 0:00:14.9]} 38... g4 {[%clk 0:00:22.7]} 39.
Nf2 {[%clk 0:00:16.2]} 39... Bf4+ {[%clk 0:00:19.7]} 40. Kd1 {[%clk 0:00:15.9]}
40... Kg5 {[%clk 0:00:20.8]} 41. Be4 {[%clk 0:00:11.5]} 41... c5 {[%clk
0:00:18.6]} 42. a4 {[%clk 0:00:11.5]} 42... bxa4 {[%clk 0:00:18.7]} 43. bxa4
{[%clk 0:00:13.4]} 43... Nb3 {[%clk 0:00:19.2]} 44. Bd5 {[%clk 0:00:12.9]} 44...
Nd4 {[%clk 0:00:20]} 45. Bxf7 {[%clk 0:00:14.2]} 45... g3 {[%clk 0:00:21]} 46.
Ne4+ {[%clk 0:00:12.5]} 46... Kg4 {[%clk 0:00:21.8]} 47. Bd5 {[%clk 0:00:12.5]}
47... g2 {[%clk 0:00:22.4]} 48. Nf6+ {[%clk 0:00:12.3]} 48... Kf5 {[%clk
0:00:20.2]} 49. Bxg2 {[%clk 0:00:11.1]} 49... Kxf6 {[%clk 0:00:21.2]} 0-1

[Event "*** Titled Tuesday Blitz"]
[Site "Chess.com"]
[Date "2020.02.04"]
[Round "4"]
[White "Misi_95"]
[Black "MathiasWomacka"]
[Result "0-1"]
[WhiteElo "2644"]
[BlackElo "2435"]
[TimeControl "180+2"]
[EndTime "13:51:53 PST"]
[Termination "MathiasWomacka won by resignation"]

1. e4 {[%clk 0:03:01.9]} 1... c5 {[%clk 0:03:00.5]} 2. Nf3 {[%clk 0:03:01.7]}
2... d6 {[%clk 0:03:01.8]} 3. Bb5+ {[%clk 0:03:02]} 3... Nd7 {[%clk 0:03:02.1]}
4. d4 {[%clk 0:03:01]} 4... cxd4 {[%clk 0:03:01.7]} 5. Qxd4 {[%clk 0:03:02.9]}
5... a6 {[%clk 0:03:02.9]} 6. Bxd7+ {[%clk 0:03:03.2]} 6... Bxd7 {[%clk
0:03:04.8]} 7. Nc3 {[%clk 0:03:03.4]} 7... e5 {[%clk 0:02:54.6]} 8. Qd3 {[%clk
0:03:03.1]} 8... h6 {[%clk 0:02:53.6]} 9. Nd2 {[%clk 0:03:02]} 9... Be6 {[%clk
0:02:42.4]} 10. Nc4 {[%clk 0:03:00]} 10... Rc8 {[%clk 0:02:34.7]} 11. Ne3 {[%clk
0:03:00.4]} 11... Nf6 {[%clk 0:02:35.6]} 12. O-O {[%clk 0:03:00.8]} 12... Be7
{[%clk 0:02:36.7]} 13. Rd1 {[%clk 0:03:01.4]} 13... O-O {[%clk 0:02:35.2]} 14.
a4 {[%clk 0:03:02.8]} 14... Qb6 {[%clk 0:02:31]} 15. a5 {[%clk 0:02:59.5]} 15...
Qc5 {[%clk 0:02:32.1]} 16. Bd2 {[%clk 0:03:00.3]} 16... Qd4 {[%clk 0:02:30.4]}
17. Be1 {[%clk 0:02:59.2]} 17... Qxd3 {[%clk 0:02:31]} 18. Rxd3 {[%clk
0:02:59.9]} 18... Rc6 {[%clk 0:02:12.6]} 19. f3 {[%clk 0:03:00.2]} 19... Rfc8
{[%clk 0:02:13.3]} 20. Rad1 {[%clk 0:02:50.5]} 20... Kf8 {[%clk 0:02:10.9]} 21.
b4 {[%clk 0:02:46.5]} 21... g6 {[%clk 0:02:03.8]} 22. Ncd5 {[%clk 0:02:38.8]}
22... Bxd5 {[%clk 0:01:58.7]} 23. exd5 {[%clk 0:02:40.3]} 23... R6c7 {[%clk
0:01:59.7]} 24. c4 {[%clk 0:02:34.4]} 24... Nh5 {[%clk 0:01:40.6]} 25. c5 {[%clk
0:02:34.7]} 25... f5 {[%clk 0:01:41.8]} 26. Nc4 {[%clk 0:02:32.7]} 26... Rd8
{[%clk 0:01:06.7]} 27. Bf2 {[%clk 0:02:23]} 27... Kf7 {[%clk 0:00:56.8]} 28. g3
{[%clk 0:02:18]} 28... Nf6 {[%clk 0:00:56.8]} 29. cxd6 {[%clk 0:01:10.7]} 29...
Rxc4 {[%clk 0:00:56.7]} 30. dxe7 {[%clk 0:01:10.2]} 30... Kxe7 {[%clk
0:00:58.6]} 31. Bc5+ {[%clk 0:01:09.9]} 31... Kf7 {[%clk 0:00:56.5]} 32. d6
{[%clk 0:01:09.7]} 32... Rd7 {[%clk 0:00:55.9]} 33. Kf2 {[%clk 0:01:05.3]} 33...
e4 {[%clk 0:00:56.8]} 34. Rd4 {[%clk 0:01:06.1]} 34... Rc3 {[%clk 0:00:42.6]}
35. f4 {[%clk 0:00:56.3]} 35... Ng4+ {[%clk 0:00:38.7]} 36. Kg1 {[%clk
0:00:53.8]} 36... Ke6 {[%clk 0:00:22]} 37. Re1 {[%clk 0:00:54.4]} 37... Rc2
{[%clk 0:00:20.7]} 38. h3 {[%clk 0:00:46.6]} 38... Nh2 {[%clk 0:00:21.7]} 39.
Rf1 {[%clk 0:00:37.6]} 39... Nxf1 {[%clk 0:00:20.4]} 40. Kxf1 {[%clk 0:00:38]}
40... g5 {[%clk 0:00:21.7]} 41. Kg1 {[%clk 0:00:31.9]} 41... gxf4 {[%clk
0:00:21.4]} 42. gxf4 {[%clk 0:00:33.8]} 42... Rg7+ {[%clk 0:00:22.2]} 43. Kf1
{[%clk 0:00:35.3]} 43... Kd7 {[%clk 0:00:23.4]} 44. Rd5 {[%clk 0:00:36.8]} 44...
Rgg2 {[%clk 0:00:20.7]} 45. Rxf5 {[%clk 0:00:37.4]} 45... Rgd2 {[%clk
0:00:21.2]} 46. Rf7+ {[%clk 0:00:37.7]} 46... Ke6 {[%clk 0:00:18.7]} 47. Re7+
{[%clk 0:00:38.6]} 47... Kf5 {[%clk 0:00:17.6]} 48. Rf7+ {[%clk 0:00:38.2]}
48... Kg6 {[%clk 0:00:18.5]} 0-1

[Event "*** Titled Tuesday Blitz"]
[Site "Chess.com"]
[Date "2020.02.04"]
[Round "4"]
[White "AntonSmirnov"]
[Black "johnathan113"]
[Result "1-0"]
[WhiteElo "2896"]
[BlackElo "2633"]
[TimeControl "180+2"]
[EndTime "13:51:59 PST"]
[Termination "AntonSmirnov won by resignation"]

1. e4 {[%clk 0:03:01.9]} 1... c5 {[%clk 0:03:00.1]} 2. Nf3 {[%clk 0:03:02.5]}
2... g6 {[%clk 0:03:01.5]} 3. d4 {[%clk 0:03:02.1]} 3... cxd4 {[%clk 0:03:03.4]}
4. Nxd4 {[%clk 0:03:03.4]} 4... Nc6 {[%clk 0:03:03.6]} 5. Nc3 {[%clk 0:03:04.1]}
5... Bg7 {[%clk 0:03:04.8]} 6. Be3 {[%clk 0:03:04.9]} 6... Nf6 {[%clk
0:03:06.3]} 7. Bc4 {[%clk 0:03:04.8]} 7... O-O {[%clk 0:03:07.2]} 8. Bb3 {[%clk
0:03:05.8]} 8... d5 {[%clk 0:03:08.8]} 9. exd5 {[%clk 0:03:01.4]} 9... Na5
{[%clk 0:03:10.1]} 10. O-O {[%clk 0:03:01.7]} 10... Nxb3 {[%clk 0:03:10.7]} 11.
Nxb3 {[%clk 0:03:01.5]} 11... b6 {[%clk 0:03:12.1]} 12. Qd2 {[%clk 0:02:59.7]}
12... Bb7 {[%clk 0:03:12.1]} 13. Rad1 {[%clk 0:03:00]} 13... Qc7 {[%clk
0:03:12.9]} 14. Bf4 {[%clk 0:02:58.5]} 14... Qc4 {[%clk 0:02:42.4]} 15. Bh6
{[%clk 0:02:37.2]} 15... Rfd8 {[%clk 0:02:28.7]} 16. Bxg7 {[%clk 0:02:37]} 16...
Kxg7 {[%clk 0:02:30.6]} 17. Qe3 {[%clk 0:02:15.7]} 17... Nxd5 {[%clk 0:01:44]}
18. Nxd5 {[%clk 0:02:12.7]} 18... Rxd5 {[%clk 0:01:42.7]} 19. Qxe7 {[%clk
0:02:06.3]} 19... Rxd1 {[%clk 0:01:33.8]} 20. Rxd1 {[%clk 0:02:04.7]} 20... Bxg2
{[%clk 0:01:14.4]} 21. Qe5+ {[%clk 0:02:05.2]} 21... Kg8 {[%clk 0:01:14.9]} 22.
Qd4 {[%clk 0:01:46.6]} 22... Qc6 {[%clk 0:01:01.6]} 23. Qd6 {[%clk 0:01:39.4]}
23... Rc8 {[%clk 0:00:35.6]} 24. Qxc6 {[%clk 0:01:38.4]} 24... Bxc6 {[%clk
0:00:37.5]} 25. Nd4 {[%clk 0:01:38.9]} 25... Bb7 {[%clk 0:00:25]} 26. f3 {[%clk
0:01:39.1]} 26... Kf8 {[%clk 0:00:25.1]} 27. Kf2 {[%clk 0:01:39.6]} 27... Ke7
{[%clk 0:00:26.6]} 28. a3 {[%clk 0:01:38.7]} 28... f5 {[%clk 0:00:27.1]} 29. c3
{[%clk 0:01:35.7]} 29... Rd8 {[%clk 0:00:27.1]} 30. Re1+ {[%clk 0:01:36.6]}
30... Kf6 {[%clk 0:00:28]} 31. Re6+ {[%clk 0:01:37.2]} 31... Kg5 {[%clk
0:00:29.4]} 32. Re7 {[%clk 0:01:38]} 32... Bd5 {[%clk 0:00:29.3]} 33. Rxh7
{[%clk 0:01:38.5]} 33... a5 {[%clk 0:00:27.3]} 34. h4+ {[%clk 0:01:33.4]} 34...
Kf6 {[%clk 0:00:26.2]} 35. h5 {[%clk 0:01:34.5]} 35... Kg5 {[%clk 0:00:15.5]}
36. hxg6 {[%clk 0:01:34.6]} 36... Kxg6 {[%clk 0:00:17.4]} 37. Rc7 {[%clk
0:01:25.9]} 37... Rh8 {[%clk 0:00:18.2]} 38. Kg3 {[%clk 0:01:26.4]} 38... Kg5
{[%clk 0:00:16.8]} 39. Rg7+ {[%clk 0:01:27]} 39... Kf6 {[%clk 0:00:18.2]} 40.
Rd7 {[%clk 0:01:28.2]} 40... Bc4 {[%clk 0:00:10.3]} 41. Rd6+ {[%clk 0:01:27.8]}
41... Ke5 {[%clk 0:00:11.2]} 42. Rxb6 {[%clk 0:01:28.6]} 42... f4+ {[%clk
0:00:12.7]} 43. Kg2 {[%clk 0:01:27.3]} 43... Rg8+ {[%clk 0:00:13.8]} 44. Kf2
{[%clk 0:01:28.4]} 44... Rh8 {[%clk 0:00:15.7]} 45. Rg6 {[%clk 0:01:25.2]} 45...
Rh2+ {[%clk 0:00:15.1]} 46. Rg2 {[%clk 0:01:26.3]} 46... Rh1 {[%clk 0:00:16.7]}
47. Rg5+ {[%clk 0:01:27]} 47... Kd6 {[%clk 0:00:17]} 48. Kg2 {[%clk 0:01:12.3]}
48... Rb1 {[%clk 0:00:16.9]} 49. b4 {[%clk 0:01:12.8]} 49... a4 {[%clk
0:00:17.5]} 50. Ra5 {[%clk 0:01:11.5]} 50... Bb3 {[%clk 0:00:17.6]} 51. Ra6+
{[%clk 0:01:01.2]} 51... Kd5 {[%clk 0:00:18.4]} 52. b5 {[%clk 0:01:01.7]} 52...
Rc1 {[%clk 0:00:16.4]} 53. b6 {[%clk 0:01:00.4]} 53... Kd6 {[%clk 0:00:10.1]}
54. b7+ {[%clk 0:00:58.9]} 54... Kc7 {[%clk 0:00:10.8]} 55. Rb6 {[%clk
0:00:59.9]} 55... Rc2+ {[%clk 0:00:04.6]} 56. Kh3 {[%clk 0:00:58.4]} 56... Be6+
{[%clk 0:00:05.1]} 57. Nxe6+ {[%clk 0:00:58.7]} 57... Kb8 {[%clk 0:00:06.5]} 58.
Nd4 {[%clk 0:00:59.4]} 58... Rxc3 {[%clk 0:00:04.2]} 59. Nc6+ {[%clk 0:01:00.4]}
59... Kc7 {[%clk 0:00:05.7]} 60. b8=Q+ {[%clk 0:01:01.2]} 60... Kd7 {[%clk
0:00:07.6]} 61. Qd8+ {[%clk 0:01:01.1]} 61... Ke6 {[%clk 0:00:07.4]} 62. Nd4+
{[%clk 0:01:01.7]} 1-0

[Event "*** Titled Tuesday Blitz"]
[Site "Chess.com"]
[Date "2020.02.04"]
[Round "4"]
[White "SCIM"]
[Black "FedaMaster"]
[Result "1-0"]
[WhiteElo "2460"]
[BlackElo "2585"]
[TimeControl "180+2"]
[EndTime "13:52:03 PST"]
[Termination "SCIM won by resignation"]

1. d4 {[%clk 0:02:58.6]} 1... Nf6 {[%clk 0:02:49.5]} 2. c4 {[%clk 0:02:53.6]}
2... g6 {[%clk 0:02:49.7]} 3. Nc3 {[%clk 0:02:53.8]} 3... d5 {[%clk 0:02:50.9]}
4. cxd5 {[%clk 0:02:54.1]} 4... Nxd5 {[%clk 0:02:52.5]} 5. e4 {[%clk 0:02:55.4]}
5... Nxc3 {[%clk 0:02:53.8]} 6. bxc3 {[%clk 0:02:57.3]} 6... c5 {[%clk
0:02:55.2]} 7. Bc4 {[%clk 0:02:55]} 7... Bg7 {[%clk 0:02:56.1]} 8. Ne2 {[%clk
0:02:55.8]} 8... O-O {[%clk 0:02:57.7]} 9. O-O {[%clk 0:02:54.8]} 9... Nc6
{[%clk 0:02:54.4]} 10. Be3 {[%clk 0:02:53.5]} 10... b6 {[%clk 0:02:55.5]} 11.
Qd2 {[%clk 0:02:45.7]} 11... Bb7 {[%clk 0:02:55]} 12. Rad1 {[%clk 0:02:43.2]}
12... cxd4 {[%clk 0:02:47.6]} 13. cxd4 {[%clk 0:02:42.8]} 13... Na5 {[%clk
0:02:45.9]} 14. Bd3 {[%clk 0:02:42]} 14... Qd6 {[%clk 0:02:43]} 15. Rc1 {[%clk
0:02:24.6]} 15... Rac8 {[%clk 0:02:33.1]} 16. h4 {[%clk 0:02:15.5]} 16... Rxc1
{[%clk 0:02:00.3]} 17. Rxc1 {[%clk 0:02:14.2]} 17... Rc8 {[%clk 0:02:01.9]} 18.
h5 {[%clk 0:02:09.1]} 18... Rxc1+ {[%clk 0:01:59]} 19. Qxc1 {[%clk 0:02:08.2]}
19... e6 {[%clk 0:01:42]} 20. h6 {[%clk 0:02:05.4]} 20... Bf8 {[%clk 0:01:38]}
21. Bf4 {[%clk 0:01:59.5]} 21... Qc6 {[%clk 0:01:37.1]} 22. Qxc6 {[%clk
0:01:52.5]} 22... Nxc6 {[%clk 0:01:33.7]} 23. f3 {[%clk 0:01:37.9]} 23... f6
{[%clk 0:01:32.3]} 24. Kf2 {[%clk 0:01:32.1]} 24... Nb4 {[%clk 0:01:09.6]} 25.
Bc4 {[%clk 0:01:30.3]} 25... Kf7 {[%clk 0:01:05.8]} 26. Bd2 {[%clk 0:01:03.2]}
26... a5 {[%clk 0:00:50.5]} 27. Nf4 {[%clk 0:00:59.8]} 27... Bc8 {[%clk
0:00:50.1]} 28. a3 {[%clk 0:00:26.7]} 28... Nc2 {[%clk 0:00:48.4]} 29. d5 {[%clk
0:00:23.2]} 29... Bxa3 {[%clk 0:00:31.8]} 30. dxe6+ {[%clk 0:00:21.5]} 30... Kf8
{[%clk 0:00:33.2]} 31. Nxg6+ {[%clk 0:00:12.6]} 31... hxg6 {[%clk 0:00:33.9]}
32. g4 {[%clk 0:00:04.9]} 32... g5 {[%clk 0:00:21.7]} 33. e5 {[%clk 0:00:04.7]}
33... Bc5+ {[%clk 0:00:21.4]} 34. Kg3 {[%clk 0:00:04.8]} 34... Be7 {[%clk
0:00:23.3]} 35. exf6 {[%clk 0:00:04.8]} 35... Bxf6 {[%clk 0:00:24.7]} 36. f4
{[%clk 0:00:05.3]} 36... Nd4 {[%clk 0:00:17.8]} 37. fxg5 {[%clk 0:00:05.3]}
37... Bxg5 {[%clk 0:00:18.9]} 38. Bxg5 {[%clk 0:00:05.3]} 38... Bxe6 {[%clk
0:00:19.2]} 39. Bf6 {[%clk 0:00:03.3]} 39... Bg8 {[%clk 0:00:09.2]} 40. Bxg8
{[%clk 0:00:03.1]} 40... Kxg8 {[%clk 0:00:09.4]} 41. Bxd4 {[%clk 0:00:04.5]}
41... b5 {[%clk 0:00:07.9]} 42. g5 {[%clk 0:00:06.4]} 42... Kh7 {[%clk
0:00:08.8]} 43. Kg4 {[%clk 0:00:07.1]} 43... Kg6 {[%clk 0:00:10.3]} 44. Bc3
{[%clk 0:00:07.6]} 44... b4 {[%clk 0:00:11.6]} 45. Bd4 {[%clk 0:00:08.2]} 45...
a4 {[%clk 0:00:12.9]} 46. Kf4 {[%clk 0:00:04.9]} 46... a3 {[%clk 0:00:14.5]} 47.
Bc5 {[%clk 0:00:04.6]} 47... b3 {[%clk 0:00:16.1]} 48. Bxa3 {[%clk 0:00:05.3]}
48... b2 {[%clk 0:00:18]} 49. Bxb2 {[%clk 0:00:06.8]} 49... Kh7 {[%clk
0:00:19.7]} 50. Kf5 {[%clk 0:00:08.1]} 50... Kg8 {[%clk 0:00:21.6]} 51. Kg6
{[%clk 0:00:09.2]} 1-0